[Event "*** SCC Grand Prix: Titled Tuesday Blitz"]
[Site "Chess.com"]
[Date "2020.09.08"]
[Round "3"]
[White "ketster"]
[Black "fireheart92"]
[Result "0-1"]
[WhiteElo "2452"]
[BlackElo "2860"]
[TimeControl "180+1"]
[EndTime "10:30:48 PDT"]
[Termination "fireheart92 won by checkmate"]

1. d4 {[%clk 0:03:00.9]} 1... Nf6 {[%clk 0:02:59.3]} 2. c4 {[%clk 0:02:59.5]}
2... c5 {[%clk 0:02:59.3]} 3. d5 {[%clk 0:02:57.6]} 3... b5 {[%clk 0:02:59.6]}
4. Nd2 {[%clk 0:02:55]} 4... d6 {[%clk 0:02:50.8]} 5. e4 {[%clk 0:02:52.3]} 5...
bxc4 {[%clk 0:02:50.3]} 6. Bxc4 {[%clk 0:02:51.6]} 6... g6 {[%clk 0:02:50.4]} 7.
b3 {[%clk 0:02:49.3]} 7... Bg7 {[%clk 0:02:49.9]} 8. Bb2 {[%clk 0:02:49.4]} 8...
O-O {[%clk 0:02:50]} 9. Ngf3 {[%clk 0:02:48.1]} 9... Bg4 {[%clk 0:02:41.5]} 10.
O-O {[%clk 0:02:45.4]} 10... Nbd7 {[%clk 0:02:41.3]} 11. Qc2 {[%clk 0:02:40.8]}
11... Nb6 {[%clk 0:02:27.2]} 12. Bd3 {[%clk 0:02:38.2]} 12... a5 {[%clk
0:02:26.5]} 13. a4 {[%clk 0:02:23.4]} 13... Rb8 {[%clk 0:02:19.6]} 14. h3 {[%clk
0:02:21.1]} 14... Bxf3 {[%clk 0:02:19.4]} 15. Nxf3 {[%clk 0:02:21]} 15... Qc7
{[%clk 0:02:17.2]} 16. Bc3 {[%clk 0:02:19.8]} 16... Ra8 {[%clk 0:02:13.7]} 17.
Nd2 {[%clk 0:02:10.4]} 17... Rfb8 {[%clk 0:02:12.3]} 18. Bb5 {[%clk 0:01:59.9]}
18... Qd8 {[%clk 0:02:11.5]} 19. Qb2 {[%clk 0:01:54.5]} 19... Qf8 {[%clk
0:02:10.7]} 20. f4 {[%clk 0:01:50.1]} 20... Nfd7 {[%clk 0:02:09.2]} 21. Bc6
{[%clk 0:01:44.3]} 21... Bxc3 {[%clk 0:02:00.5]} 22. Qxc3 {[%clk 0:01:43.7]}
22... Ra7 {[%clk 0:02:00.9]} 23. e5 {[%clk 0:01:39.1]} 23... Qg7 {[%clk
0:02:00.2]} 24. Rae1 {[%clk 0:01:37]} 24... c4 {[%clk 0:01:51.8]} 25. bxc4
{[%clk 0:01:25.8]} 25... Nc5 {[%clk 0:01:51.1]} 26. Qc2 {[%clk 0:01:25.1]} 26...
Rc7 {[%clk 0:01:47.4]} 27. Rf3 {[%clk 0:00:51.8]} 27... Na6 {[%clk 0:01:42.5]}
28. Qe4 {[%clk 0:00:40.6]} 28... Nb4 {[%clk 0:01:38.9]} 29. Bb5 {[%clk
0:00:36.7]} 29... Rbc8 {[%clk 0:01:30.5]} 30. Rfe3 {[%clk 0:00:34.9]} 30... h5
{[%clk 0:01:25.8]} 31. Kh2 {[%clk 0:00:34.4]} 31... Qf8 {[%clk 0:01:08.6]} 32.
Qb1 {[%clk 0:00:33.5]} 32... Nd7 {[%clk 0:01:01.5]} 33. e6 {[%clk 0:00:26.4]}
33... Nc5 {[%clk 0:01:01.1]} 34. f5 {[%clk 0:00:22.5]} 34... fxe6 {[%clk
0:00:54.9]} 35. fxe6 {[%clk 0:00:21.4]} 35... Qh6 {[%clk 0:00:50.8]} 36. Rg3
{[%clk 0:00:20.6]} 36... Kh7 {[%clk 0:00:46.9]} 37. Nf3 {[%clk 0:00:19.7]} 37...
Rf8 {[%clk 0:00:33.4]} 38. Ng5+ {[%clk 0:00:15.4]} 38... Kg7 {[%clk 0:00:33.3]}
39. Nf7 {[%clk 0:00:13.9]} 39... Qh7 {[%clk 0:00:32.9]} 40. Rf1 {[%clk
0:00:13.3]} 40... h4 {[%clk 0:00:29.6]} 41. Rg4 {[%clk 0:00:13]} 41... Nbd3
{[%clk 0:00:28.3]} 42. Qd1 {[%clk 0:00:13.2]} 42... Ne5 {[%clk 0:00:26.2]} 43.
Nxe5 {[%clk 0:00:12.4]} 43... dxe5 {[%clk 0:00:27.1]} 44. Qe2 {[%clk 0:00:11.2]}
44... Rxf1 {[%clk 0:00:26.1]} 45. Qxf1 {[%clk 0:00:09]} 45... Qg8 {[%clk
0:00:16.9]} 46. Qe2 {[%clk 0:00:08.9]} 46... e4 {[%clk 0:00:16.3]} 47. Qe3
{[%clk 0:00:08.5]} 47... Qf8 {[%clk 0:00:14.7]} 48. Qd4+ {[%clk 0:00:08.7]}
48... Qf6 {[%clk 0:00:14.7]} 49. Qe3 {[%clk 0:00:08]} 49... Qe5+ {[%clk
0:00:13.9]} 50. g3 {[%clk 0:00:08.2]} 50... hxg3+ {[%clk 0:00:13.7]} 51. Rxg3
{[%clk 0:00:07.8]} 51... Rc8 {[%clk 0:00:13.1]} 52. Qe2 {[%clk 0:00:05.7]} 52...
Rf8 {[%clk 0:00:12.3]} 53. Qg4 {[%clk 0:00:05.5]} 53... Rf2+ {[%clk 0:00:11.7]}
54. Kg1 {[%clk 0:00:05.4]} 54... Rf6 {[%clk 0:00:10.8]} 55. Rg2 {[%clk
0:00:05.3]} 55... Nd3 {[%clk 0:00:10.6]} 56. h4 {[%clk 0:00:04.7]} 56... e3
{[%clk 0:00:10.8]} 57. h5 {[%clk 0:00:04.7]} 57... Nf2 {[%clk 0:00:10.8]} 58.
Qg3 {[%clk 0:00:02.9]} 58... Qa1+ {[%clk 0:00:10.3]} 59. Kh2 {[%clk 0:00:03]}
59... Qh1# {[%clk 0:00:10.3]} 0-1

[Event "*** SCC Grand Prix: Titled Tuesday Blitz"]
[Site "Chess.com"]
[Date "2020.09.08"]
[Round "3"]
[White "TregubovP"]
[Black "tteshan"]
[Result "0-1"]
[WhiteElo "2584"]
[BlackElo "2413"]
[TimeControl "180+1"]
[EndTime "10:30:48 PDT"]
[Termination "tteshan won by resignation"]

1. e4 {[%clk 0:02:49.6]} 1... c5 {[%clk 0:02:58.6]} 2. Nf3 {[%clk 0:02:48.2]}
2... d6 {[%clk 0:02:57.7]} 3. c3 {[%clk 0:02:47.7]} 3... Nf6 {[%clk 0:02:56.7]}
4. Be2 {[%clk 0:02:43.7]} 4... g6 {[%clk 0:02:52.9]} 5. O-O {[%clk 0:02:39.9]}
5... Bg7 {[%clk 0:02:52.6]} 6. Bb5+ {[%clk 0:02:36.9]} 6... Bd7 {[%clk
0:02:36.4]} 7. Bxd7+ {[%clk 0:02:35]} 7... Qxd7 {[%clk 0:02:36.5]} 8. Re1 {[%clk
0:02:33.8]} 8... Nc6 {[%clk 0:02:35]} 9. d4 {[%clk 0:02:33.8]} 9... cxd4 {[%clk
0:02:34.8]} 10. cxd4 {[%clk 0:02:34]} 10... O-O {[%clk 0:02:35.4]} 11. Nc3
{[%clk 0:02:27.4]} 11... Rac8 {[%clk 0:02:28.9]} 12. h3 {[%clk 0:02:27.1]} 12...
a6 {[%clk 0:02:27.5]} 13. e5 {[%clk 0:02:13.9]} 13... dxe5 {[%clk 0:02:25.7]}
14. dxe5 {[%clk 0:02:13.6]} 14... Qxd1 {[%clk 0:02:21.7]} 15. Rxd1 {[%clk
0:02:14]} 15... Ne8 {[%clk 0:02:20.9]} 16. Bf4 {[%clk 0:02:04.4]} 16... Nc7
{[%clk 0:02:19.5]} 17. Rd7 {[%clk 0:02:02.6]} 17... Ne6 {[%clk 0:02:06]} 18. Bg3
{[%clk 0:01:53.7]} 18... Rc7 {[%clk 0:02:05.3]} 19. Rxc7 {[%clk 0:01:41.2]}
19... Nxc7 {[%clk 0:01:58.6]} 20. Rd1 {[%clk 0:01:41.7]} 20... Rd8 {[%clk
0:01:58]} 21. Rxd8+ {[%clk 0:01:40.6]} 21... Nxd8 {[%clk 0:01:58]} 22. Kf1
{[%clk 0:01:41.2]} 22... Kf8 {[%clk 0:01:54.6]} 23. Ke2 {[%clk 0:01:41.7]} 23...
Ke8 {[%clk 0:01:53.5]} 24. Kd3 {[%clk 0:01:42.1]} 24... Kd7 {[%clk 0:01:53]} 25.
Ke4 {[%clk 0:01:35.7]} 25... Nc6 {[%clk 0:01:47.8]} 26. Ng5 {[%clk 0:01:34.5]}
26... h6 {[%clk 0:01:32.7]} 27. Nf3 {[%clk 0:01:33.7]} 27... Ne6 {[%clk
0:01:18.1]} 28. Ke3 {[%clk 0:01:12.1]} 28... Nc5 {[%clk 0:01:09.5]} 29. Ne4
{[%clk 0:01:12.1]} 29... Na4 {[%clk 0:00:41.1]} 30. b3 {[%clk 0:01:09.2]} 30...
Nb6 {[%clk 0:00:41.1]} 31. Nc5+ {[%clk 0:01:08.3]} 31... Kc8 {[%clk 0:00:41.4]}
32. e6 {[%clk 0:01:06.7]} 32... fxe6 {[%clk 0:00:38.6]} 33. Nxe6 {[%clk
0:01:05.7]} 33... Bf6 {[%clk 0:00:38.1]} 34. h4 {[%clk 0:01:02.8]} 34... Nd5+
{[%clk 0:00:26.3]} 35. Kd2 {[%clk 0:01:02.9]} 35... Nc3 {[%clk 0:00:23.6]} 36.
a4 {[%clk 0:01:00.7]} 36... Ne4+ {[%clk 0:00:23.1]} 37. Kd3 {[%clk 0:00:55.6]}
37... Nxg3 {[%clk 0:00:22.1]} 38. fxg3 {[%clk 0:00:56.1]} 38... b6 {[%clk
0:00:20.5]} 39. Ke4 {[%clk 0:00:51.2]} 39... b5 {[%clk 0:00:18.1]} 40. g4 {[%clk
0:00:49.7]} 40... Na5 {[%clk 0:00:16.1]} 41. axb5 {[%clk 0:00:44.6]} 41... axb5
{[%clk 0:00:16.5]} 42. Nfd4 {[%clk 0:00:40.8]} 42... Bxd4 {[%clk 0:00:15.6]} 43.
Nxd4 {[%clk 0:00:40.9]} 43... Kd7 {[%clk 0:00:15]} 44. h5 {[%clk 0:00:40.9]}
44... gxh5 {[%clk 0:00:13.6]} 45. gxh5 {[%clk 0:00:40.4]} 45... Ke8 {[%clk
0:00:11.4]} 46. Kd5 {[%clk 0:00:38.9]} 46... Kf7 {[%clk 0:00:10.2]} 47. Kc5
{[%clk 0:00:39]} 47... Nxb3+ {[%clk 0:00:07.9]} 48. Nxb3 {[%clk 0:00:38.4]}
48... Kf6 {[%clk 0:00:08.4]} 49. Kd5 {[%clk 0:00:33.6]} 49... Kg5 {[%clk
0:00:08.5]} 50. Ke5 {[%clk 0:00:32.5]} 50... Kxh5 {[%clk 0:00:08.8]} 51. Kf4
{[%clk 0:00:29.4]} 51... Kh4 {[%clk 0:00:08.8]} 52. Nd2 {[%clk 0:00:22.2]} 52...
b4 {[%clk 0:00:06.8]} 53. Nf3+ {[%clk 0:00:17.7]} 53... Kh5 {[%clk 0:00:05.9]}
54. g4+ {[%clk 0:00:11.8]} 54... Kg6 {[%clk 0:00:05.2]} 55. Ne5+ {[%clk
0:00:11]} 55... Kf6 {[%clk 0:00:04.4]} 56. Nd3 {[%clk 0:00:07.5]} 56... b3
{[%clk 0:00:04.5]} 57. Nb2 {[%clk 0:00:06.3]} 57... e5+ {[%clk 0:00:04.5]} 58.
Ke4 {[%clk 0:00:06.3]} 58... Kg5 {[%clk 0:00:04.8]} 59. Kxe5 {[%clk 0:00:06.2]}
59... Kxg4 {[%clk 0:00:05.3]} 60. Kd4 {[%clk 0:00:04.7]} 60... h5 {[%clk
0:00:05.2]} 61. Kc3 {[%clk 0:00:05.1]} 61... h4 {[%clk 0:00:05.5]} 62. Nd3
{[%clk 0:00:05.7]} 62... Kg3 {[%clk 0:00:03.5]} 63. Nc1 {[%clk 0:00:02.5]} 63...
h3 {[%clk 0:00:03.6]} 64. Ne2+ {[%clk 0:00:02.7]} 64... Kf2 {[%clk 0:00:01.9]}
0-1

[Event "*** SCC Grand Prix: Titled Tuesday Blitz"]
[Site "Chess.com"]
[Date "2020.09.08"]
[Round "3"]
[White "Gabrielian_Artur"]
[Black "daro94"]
[Result "1-0"]
[WhiteElo "2704"]
[BlackElo "2958"]
[TimeControl "180+1"]
[EndTime "10:30:51 PDT"]
[Termination "Gabrielian_Artur won on time"]

1. e4 {[%clk 0:03:00.9]} 1... c6 {[%clk 0:02:58]} 2. d4 {[%clk 0:03:00.6]} 2...
d5 {[%clk 0:02:58.3]} 3. Nd2 {[%clk 0:03:01.1]} 3... dxe4 {[%clk 0:02:57.7]} 4.
Nxe4 {[%clk 0:03:01.7]} 4... Nf6 {[%clk 0:02:58.6]} 5. Nxf6+ {[%clk 0:03:01.4]}
5... exf6 {[%clk 0:02:59.5]} 6. c3 {[%clk 0:03:01.2]} 6... Bd6 {[%clk
0:02:59.3]} 7. Bd3 {[%clk 0:03:01.2]} 7... O-O {[%clk 0:02:59.1]} 8. Qc2 {[%clk
0:03:01.5]} 8... h5 {[%clk 0:02:57.3]} 9. Ne2 {[%clk 0:03:01.2]} 9... Re8 {[%clk
0:02:55.8]} 10. O-O {[%clk 0:03:01]} 10... Nd7 {[%clk 0:02:53.5]} 11. Be3 {[%clk
0:02:59]} 11... h4 {[%clk 0:02:47.3]} 12. h3 {[%clk 0:02:59]} 12... Nf8 {[%clk
0:02:46.5]} 13. Rad1 {[%clk 0:02:55.8]} 13... Ne6 {[%clk 0:02:41.3]} 14. Rfe1
{[%clk 0:02:43.1]} 14... Bc7 {[%clk 0:02:36.6]} 15. Qd2 {[%clk 0:02:29.9]} 15...
Qd6 {[%clk 0:02:27]} 16. Bf4 {[%clk 0:02:17.3]} 16... Nxf4 {[%clk 0:02:20.8]}
17. Qxf4 {[%clk 0:02:07.8]} 17... Be6 {[%clk 0:01:24.9]} 18. Qxd6 {[%clk
0:01:51.5]} 18... Bxd6 {[%clk 0:01:25.8]} 19. a3 {[%clk 0:01:32.1]} 19... Rad8
{[%clk 0:01:23.1]} 20. Kf1 {[%clk 0:01:31.3]} 20... g5 {[%clk 0:01:13.1]} 21.
Ng1 {[%clk 0:01:29.8]} 21... Kg7 {[%clk 0:01:12.1]} 22. Nf3 {[%clk 0:01:29.7]}
22... Bf4 {[%clk 0:01:08.7]} 23. Re2 {[%clk 0:01:19.4]} 23... Rh8 {[%clk
0:00:43.7]} 24. Rde1 {[%clk 0:01:12.3]} 24... Bd5 {[%clk 0:00:41.3]} 25. Ng1
{[%clk 0:00:57.8]} 25... Bd6 {[%clk 0:00:33.2]} 26. Re3 {[%clk 0:00:41]} 26...
b5 {[%clk 0:00:32.7]} 27. Nf3 {[%clk 0:00:34.9]} 27... Bf4 {[%clk 0:00:30.1]}
28. Re7 {[%clk 0:00:33.5]} 28... g4 {[%clk 0:00:30.6]} 29. Ng1 {[%clk
0:00:31.8]} 29... g3 {[%clk 0:00:23.9]} 30. fxg3 {[%clk 0:00:22.2]} 30... Bxg3
{[%clk 0:00:23.3]} 31. R1e2 {[%clk 0:00:21.6]} 31... a5 {[%clk 0:00:22.4]} 32.
Nf3 {[%clk 0:00:19.6]} 32... a4 {[%clk 0:00:22]} 33. Nd2 {[%clk 0:00:19.1]}
33... Rh5 {[%clk 0:00:21.1]} 34. Be4 {[%clk 0:00:15.5]} 34... Bd6 {[%clk
0:00:18.5]} 35. Bxd5 {[%clk 0:00:11.4]} 35... Rxd5 {[%clk 0:00:16]} 36. R7e4
{[%clk 0:00:10.5]} 36... Bg3 {[%clk 0:00:15.6]} 37. Nf3 {[%clk 0:00:10.5]} 37...
f5 {[%clk 0:00:16.2]} 38. Re7 {[%clk 0:00:10.1]} 38... c5 {[%clk 0:00:15.4]} 39.
R2e3 {[%clk 0:00:08.9]} 39... Kf6 {[%clk 0:00:14.2]} 40. Rb7 {[%clk 0:00:08.3]}
40... cxd4 {[%clk 0:00:12.7]} 41. Nxd4 {[%clk 0:00:08.4]} 41... Be5 {[%clk
0:00:08.1]} 42. Rb6+ {[%clk 0:00:06.6]} 42... R8d6 {[%clk 0:00:06.6]} 43. Rxd6+
{[%clk 0:00:06.2]} 43... Bxd6 {[%clk 0:00:07.5]} 44. Ke2 {[%clk 0:00:05.3]}
44... Bf4 {[%clk 0:00:06.8]} 45. Re8 {[%clk 0:00:04.5]} 45... Bc1 {[%clk
0:00:06.6]} 46. Rb8 {[%clk 0:00:03.1]} 46... Bxb2 {[%clk 0:00:04.5]} 47. Rb6+
{[%clk 0:00:03.5]} 47... Kg5 {[%clk 0:00:04.1]} 48. Nxb5 {[%clk 0:00:03.8]}
48... Re5+ {[%clk 0:00:04.1]} 49. Kd3 {[%clk 0:00:03.8]} 49... Re1 {[%clk
0:00:04.2]} 50. Nd4 {[%clk 0:00:04.3]} 50... Bxa3 {[%clk 0:00:04.1]} 51. Nf3+
{[%clk 0:00:04.4]} 51... Kf4 {[%clk 0:00:04.1]} 52. Nxe1 {[%clk 0:00:05.3]}
52... Kg3 {[%clk 0:00:04.7]} 53. Ra6 {[%clk 0:00:05.6]} 53... Bb2 {[%clk
0:00:04.3]} 54. Rxa4 {[%clk 0:00:05.8]} 54... f4 {[%clk 0:00:04.8]} 55. Ra2
{[%clk 0:00:06.1]} 55... Bc1 {[%clk 0:00:05.2]} 56. Nf3 {[%clk 0:00:06.5]} 56...
Be3 {[%clk 0:00:06.1]} 57. c4 {[%clk 0:00:06.8]} 57... f5 {[%clk 0:00:06.7]} 58.
Rc2 {[%clk 0:00:06.9]} 58... Bc5 {[%clk 0:00:06.9]} 59. Kc3 {[%clk 0:00:06.9]}
59... Bb6 {[%clk 0:00:05.7]} 60. Kb3 {[%clk 0:00:07.2]} 60... Bc5 {[%clk
0:00:06.1]} 61. Ka4 {[%clk 0:00:07.6]} 61... Bb6 {[%clk 0:00:04.1]} 62. Kb5
{[%clk 0:00:07.9]} 62... Bc5 {[%clk 0:00:04.1]} 63. Kc6 {[%clk 0:00:06.9]} 63...
Bd4 {[%clk 0:00:02.9]} 64. Nxd4 {[%clk 0:00:06.3]} 64... f3 {[%clk 0:00:02.3]}
65. Nxf5+ {[%clk 0:00:06.4]} 1-0

[Event "*** SCC Grand Prix: Titled Tuesday Blitz"]
[Site "Chess.com"]
[Date "2020.09.08"]
[Round "3"]
[White "pavlitas17"]
[Black "AlexSuv"]
[Result "1-0"]
[WhiteElo "2371"]
[BlackElo "2534"]
[TimeControl "180+1"]
[EndTime "10:30:51 PDT"]
[Termination "pavlitas17 won by resignation"]

1. d4 {[%clk 0:03:00.9]} 1... Nf6 {[%clk 0:02:59.8]} 2. c4 {[%clk 0:03:00.6]}
2... e6 {[%clk 0:02:59.5]} 3. Nf3 {[%clk 0:03:00.9]} 3... d5 {[%clk 0:02:58.5]}
4. Nc3 {[%clk 0:03:01.1]} 4... Bb4 {[%clk 0:02:57.6]} 5. Qa4+ {[%clk 0:03:01.2]}
5... Nc6 {[%clk 0:02:56.8]} 6. e3 {[%clk 0:03:01.6]} 6... O-O {[%clk 0:02:55.5]}
7. Bd2 {[%clk 0:03:01.8]} 7... dxc4 {[%clk 0:02:55.9]} 8. Bxc4 {[%clk
0:03:00.3]} 8... Bd6 {[%clk 0:02:56.1]} 9. Qc2 {[%clk 0:02:58]} 9... Qe7 {[%clk
0:02:53.9]} 10. O-O {[%clk 0:02:56.9]} 10... e5 {[%clk 0:02:52.7]} 11. d5 {[%clk
0:02:56]} 11... Na5 {[%clk 0:02:46.6]} 12. Be2 {[%clk 0:02:55.3]} 12... b6
{[%clk 0:02:47.2]} 13. a3 {[%clk 0:02:54.3]} 13... Bg4 {[%clk 0:02:47.3]} 14. h3
{[%clk 0:02:53.1]} 14... Bh5 {[%clk 0:02:46.5]} 15. Rfe1 {[%clk 0:02:46.1]}
15... Rac8 {[%clk 0:02:40.4]} 16. Nb5 {[%clk 0:02:37.6]} 16... a6 {[%clk
0:02:21.7]} 17. Na7 {[%clk 0:02:28.9]} 17... Ra8 {[%clk 0:02:19.1]} 18. Nc6
{[%clk 0:02:28.6]} 18... Nxc6 {[%clk 0:02:19.4]} 19. dxc6 {[%clk 0:02:28.9]}
19... e4 {[%clk 0:02:13.3]} 20. Nd4 {[%clk 0:02:29]} 20... Qe5 {[%clk
0:02:13.4]} 21. Bxh5 {[%clk 0:02:28.9]} 21... Qh2+ {[%clk 0:02:08]} 22. Kf1
{[%clk 0:02:29]} 22... Nxh5 {[%clk 0:02:08.9]} 23. Qxe4 {[%clk 0:02:25.2]} 23...
Rae8 {[%clk 0:02:03.3]} 24. Qf3 {[%clk 0:02:24.9]} 24... Nf4 {[%clk 0:01:51.4]}
25. g3 {[%clk 0:02:10.4]} 25... Qxh3+ {[%clk 0:01:50.7]} 26. Kg1 {[%clk
0:02:10]} 26... Nd3 {[%clk 0:01:51]} 27. Reb1 {[%clk 0:01:55.8]} 27... Re5
{[%clk 0:01:32.8]} 28. Qg2 {[%clk 0:01:55.5]} 28... Qh5 {[%clk 0:01:28.9]} 29.
b4 {[%clk 0:01:51.9]} 29... Rg5 {[%clk 0:01:22.6]} 30. e4 {[%clk 0:01:47.7]}
30... Rg6 {[%clk 0:01:18.1]} 31. Nf5 {[%clk 0:01:43.9]} 31... Re6 {[%clk
0:00:54.3]} 32. Rb3 {[%clk 0:01:28.5]} 32... Ne5 {[%clk 0:00:53.6]} 33. Bf4
{[%clk 0:01:25]} 33... Rfe8 {[%clk 0:00:49.2]} 34. Nxd6 {[%clk 0:01:23.1]} 34...
Rxd6 {[%clk 0:00:48.1]} 35. Rc1 {[%clk 0:01:21.6]} 35... Nd3 {[%clk 0:00:31.5]}
36. Rxd3 {[%clk 0:01:08.6]} 36... Rxd3 {[%clk 0:00:32.4]} 37. Bxc7 {[%clk
0:01:08.9]} 37... Rd1+ {[%clk 0:00:32.7]} 38. Rxd1 {[%clk 0:01:07.4]} 38...
Qxd1+ {[%clk 0:00:33.6]} 39. Qf1 {[%clk 0:01:04.7]} 39... Qc2 {[%clk 0:00:21]}
40. Bxb6 {[%clk 0:00:58.9]} 40... Qxc6 {[%clk 0:00:20.5]} 41. Bc5 {[%clk
0:00:54.1]} 41... a5 {[%clk 0:00:19.2]} 42. f3 {[%clk 0:00:51.5]} 42... axb4
{[%clk 0:00:19.2]} 43. axb4 {[%clk 0:00:51.7]} 43... h6 {[%clk 0:00:18.8]} 44.
Qd3 {[%clk 0:00:50.5]} 44... Qg6 {[%clk 0:00:18.4]} 45. Kf2 {[%clk 0:00:49.9]}
45... Ra8 {[%clk 0:00:18.9]} 46. Qd5 {[%clk 0:00:47.3]} 46... Qa6 {[%clk
0:00:13.5]} 47. Ke3 {[%clk 0:00:44.9]} 47... Qa3+ {[%clk 0:00:13.1]} 48. Qd3
{[%clk 0:00:44.9]} 48... Qa2 {[%clk 0:00:11.2]} 49. Kf4 {[%clk 0:00:41.6]} 49...
Ra6 {[%clk 0:00:08.9]} 50. Qd8+ {[%clk 0:00:32.4]} 50... Kh7 {[%clk 0:00:08.8]}
51. e5 {[%clk 0:00:33.3]} 51... Qc4+ {[%clk 0:00:07.8]} 52. Qd4 {[%clk
0:00:29.3]} 52... Qc1+ {[%clk 0:00:07.9]} 53. Qe3 {[%clk 0:00:24.1]} 53... Qb2
{[%clk 0:00:07.6]} 54. Qe4+ {[%clk 0:00:22.7]} 54... Kg8 {[%clk 0:00:08]} 55.
Qd3 {[%clk 0:00:17.1]} 55... Rg6 {[%clk 0:00:07.8]} 56. g4 {[%clk 0:00:16]}
56... Qc1+ {[%clk 0:00:07.2]} 57. Be3 {[%clk 0:00:14.6]} 57... Qb2 {[%clk
0:00:06.8]} 58. Qd4 {[%clk 0:00:13.9]} 58... Qb3 {[%clk 0:00:06.6]} 59. Bd2
{[%clk 0:00:12.9]} 59... Kh7 {[%clk 0:00:06.8]} 60. Be3 {[%clk 0:00:10.4]} 60...
f6 {[%clk 0:00:07.2]} 61. e6 {[%clk 0:00:09.5]} 61... Qxe6 {[%clk 0:00:07]} 62.
Qe4 {[%clk 0:00:09.2]} 62... Qxe4+ {[%clk 0:00:06.3]} 63. Kxe4 {[%clk
0:00:09.3]} 63... f5+ {[%clk 0:00:04.3]} 64. gxf5 {[%clk 0:00:08.4]} 64... Rc6
{[%clk 0:00:04.8]} 65. b5 {[%clk 0:00:08.1]} 65... Rc2 {[%clk 0:00:05.4]} 66. b6
{[%clk 0:00:07.4]} 66... Rb2 {[%clk 0:00:05.5]} 67. Bd4 {[%clk 0:00:07.8]} 67...
Kg8 {[%clk 0:00:05.7]} 68. Bxb2 {[%clk 0:00:07]} 1-0

[Event "*** SCC Grand Prix: Titled Tuesday Blitz"]
[Site "Chess.com"]
[Date "2020.09.08"]
[Round "3"]
[White "Schandenfreude"]
[Black "novocane"]
[Result "1/2-1/2"]
[WhiteElo "2515"]
[BlackElo "2305"]
[TimeControl "180+1"]
[EndTime "10:30:53 PDT"]
[Termination "Game drawn - insufficient material"]

1. Nf3 {[%clk 0:02:57.2]} 1... c5 {[%clk 0:02:59.5]} 2. c4 {[%clk 0:02:53.6]}
2... b6 {[%clk 0:02:59.4]} 3. g3 {[%clk 0:02:47.5]} 3... Bb7 {[%clk 0:02:59.2]}
4. Bg2 {[%clk 0:02:48]} 4... e6 {[%clk 0:02:59.4]} 5. O-O {[%clk 0:02:47.9]}
5... Nf6 {[%clk 0:02:59.5]} 6. b3 {[%clk 0:02:47.5]} 6... Be7 {[%clk 0:02:59.4]}
7. Bb2 {[%clk 0:02:47.9]} 7... d6 {[%clk 0:02:58.5]} 8. e3 {[%clk 0:02:48]} 8...
Nbd7 {[%clk 0:02:58.1]} 9. Qe2 {[%clk 0:02:47.9]} 9... Qc7 {[%clk 0:02:54.1]}
10. Nc3 {[%clk 0:02:47.9]} 10... a6 {[%clk 0:02:54]} 11. Rac1 {[%clk 0:02:46]}
11... O-O {[%clk 0:02:53.6]} 12. d4 {[%clk 0:02:46]} 12... Rfe8 {[%clk
0:02:44.4]} 13. Rfd1 {[%clk 0:02:45.4]} 13... Rac8 {[%clk 0:02:43.5]} 14. Rd2
{[%clk 0:02:27.2]} 14... Bf8 {[%clk 0:02:41.1]} 15. Rcd1 {[%clk 0:02:24.5]}
15... Qb8 {[%clk 0:02:34.6]} 16. h3 {[%clk 0:02:17.7]} 16... h6 {[%clk
0:02:33.7]} 17. Ne1 {[%clk 0:02:00.2]} 17... Bxg2 {[%clk 0:02:11.8]} 18. Kxg2
{[%clk 0:01:59.8]} 18... Qb7+ {[%clk 0:02:10.7]} 19. Qf3 {[%clk 0:01:58.2]}
19... Qxf3+ {[%clk 0:02:08.8]} 20. Nxf3 {[%clk 0:01:55.8]} 20... Rb8 {[%clk
0:02:08.7]} 21. Ne1 {[%clk 0:01:24.6]} 21... b5 {[%clk 0:02:01.8]} 22. cxb5
{[%clk 0:01:23.8]} 22... axb5 {[%clk 0:02:02]} 23. dxc5 {[%clk 0:01:24.2]} 23...
Nxc5 {[%clk 0:02:01.3]} 24. Nd3 {[%clk 0:01:22.8]} 24... Nce4 {[%clk 0:01:56.1]}
25. Nxe4 {[%clk 0:01:21.3]} 25... Nxe4 {[%clk 0:01:55.7]} 26. Rc2 {[%clk
0:01:21.1]} 26... Rec8 {[%clk 0:01:55.1]} 27. Rdc1 {[%clk 0:01:16.9]} 27... Rxc2
{[%clk 0:01:53.5]} 28. Rxc2 {[%clk 0:01:17.8]} 28... Ra8 {[%clk 0:01:51.4]} 29.
Bc1 {[%clk 0:01:10.4]} 29... d5 {[%clk 0:01:48.4]} 30. f3 {[%clk 0:01:01.5]}
30... Nd6 {[%clk 0:01:44.9]} 31. Bd2 {[%clk 0:00:59.9]} 31... g6 {[%clk
0:01:25.6]} 32. Bb4 {[%clk 0:00:55.7]} 32... Nf5 {[%clk 0:01:21.1]} 33. Kf2
{[%clk 0:00:53.3]} 33... d4 {[%clk 0:01:12.4]} 34. exd4 {[%clk 0:00:27.7]} 34...
Nxd4 {[%clk 0:01:10.4]} 35. Rd2 {[%clk 0:00:27.3]} 35... Nc6 {[%clk 0:00:51.6]}
36. Bxf8 {[%clk 0:00:25.4]} 36... Kxf8 {[%clk 0:00:51.7]} 37. Rc2 {[%clk
0:00:22.5]} 37... Nd4 {[%clk 0:00:46.9]} 38. Rd2 {[%clk 0:00:22.5]} 38... Nc6
{[%clk 0:00:47]} 39. Ke3 {[%clk 0:00:20.7]} 39... Ke7 {[%clk 0:00:37]} 40. Rc2
{[%clk 0:00:19.9]} 40... Kd6 {[%clk 0:00:20.9]} 41. f4 {[%clk 0:00:19.4]} 41...
e5 {[%clk 0:00:17.5]} 42. h4 {[%clk 0:00:07.5]} 42... exf4+ {[%clk 0:00:17]} 43.
gxf4 {[%clk 0:00:08.4]} 43... Ne7 {[%clk 0:00:11.5]} 44. Ne5 {[%clk 0:00:06.4]}
44... Nd5+ {[%clk 0:00:11.6]} 45. Kf3 {[%clk 0:00:05.7]} 45... g5 {[%clk
0:00:10.5]} 46. hxg5 {[%clk 0:00:05.1]} 46... hxg5 {[%clk 0:00:10.9]} 47. Nxf7+
{[%clk 0:00:05.5]} 47... Kd7 {[%clk 0:00:04.9]} 48. Nxg5 {[%clk 0:00:06.4]}
48... Nb4 {[%clk 0:00:05.3]} 49. Rd2+ {[%clk 0:00:06.6]} 49... Ke7 {[%clk
0:00:05.2]} 50. Ne4 {[%clk 0:00:06.5]} 50... Rxa2 {[%clk 0:00:04.2]} 51. Rxa2
{[%clk 0:00:06.5]} 51... Nxa2 {[%clk 0:00:05.1]} 52. Ke3 {[%clk 0:00:06.2]}
52... Nc1 {[%clk 0:00:05.4]} 53. Nd2 {[%clk 0:00:05]} 53... Kf6 {[%clk
0:00:04.9]} 54. Ke4 {[%clk 0:00:05.3]} 54... b4 {[%clk 0:00:04.4]} 55. Ke3
{[%clk 0:00:04.9]} 55... Kf5 {[%clk 0:00:03.5]} 56. Kf3 {[%clk 0:00:05.3]} 56...
Na2 {[%clk 0:00:03.3]} 57. Ke3 {[%clk 0:00:05.4]} 57... Nc1 {[%clk 0:00:03.3]}
58. Kd4 {[%clk 0:00:03.3]} 58... Nxb3+ {[%clk 0:00:02.5]} 59. Nxb3 {[%clk
0:00:02.6]} 59... Kxf4 {[%clk 0:00:02.8]} 60. Kc4 {[%clk 0:00:03.5]} 60... Ke3
{[%clk 0:00:03]} 61. Kxb4 {[%clk 0:00:04.4]} 1/2-1/2